[Event "*** Titled Tuesday Blitz"]
[Site "Chess.com"]
[Date "2018.05.01"]
[Round "4"]
[White "Eliwood44"]
[Black "dukicz123"]
[Result "1/2-1/2"]
[WhiteElo "2166"]
[BlackElo "2327"]
[TimeControl "180+2"]
[EndTime "13:54:25 PDT"]
[Termination "Game drawn - insufficient material"]

1. d4 {[%clk 0:03:01.5]} 1... Nf6 {[%clk 0:02:59.5]} 2. Nf3 {[%clk 0:02:55.8]}
2... g6 {[%clk 0:03:00]} 3. Nc3 {[%clk 0:02:56.4]} 3... d5 {[%clk 0:03:00.5]} 4.
Bf4 {[%clk 0:02:56.7]} 4... Bg7 {[%clk 0:03:01.6]} 5. Nb5 {[%clk 0:02:57.6]}
5... Na6 {[%clk 0:02:59.9]} 6. e3 {[%clk 0:02:58.7]} 6... O-O {[%clk 0:02:59.6]}
7. h3 {[%clk 0:02:59.6]} 7... c6 {[%clk 0:02:41.2]} 8. Na3 {[%clk 0:03:00.1]}
8... Qb6 {[%clk 0:02:40.7]} 9. Rb1 {[%clk 0:02:56.4]} 9... c5 {[%clk 0:02:14.7]}
10. c3 {[%clk 0:02:56.3]} 10... Bf5 {[%clk 0:02:11.7]} 11. Bd3 {[%clk
0:02:54.4]} 11... Bxd3 {[%clk 0:02:08.4]} 12. Qxd3 {[%clk 0:02:56.3]} 12... Nc7
{[%clk 0:02:09.4]} 13. O-O {[%clk 0:02:51.3]} 13... Ne6 {[%clk 0:02:10]} 14. Bh2
{[%clk 0:02:52]} 14... Ne4 {[%clk 0:02:08.4]} 15. Rfd1 {[%clk 0:02:47]} 15...
Rfd8 {[%clk 0:02:09]} 16. Be5 {[%clk 0:02:42.3]} 16... f6 {[%clk 0:01:54.2]} 17.
Bh2 {[%clk 0:02:42.8]} 17... Rac8 {[%clk 0:01:55.3]} 18. Qb5 {[%clk 0:02:18.5]}
18... Qxb5 {[%clk 0:01:35.7]} 19. Nxb5 {[%clk 0:02:20.4]} 19... a6 {[%clk
0:01:37.3]} 20. Na3 {[%clk 0:02:20.9]} 20... cxd4 {[%clk 0:01:35.9]} 21. Nxd4
{[%clk 0:02:19.1]} 21... Nxd4 {[%clk 0:01:35.6]} 22. Rxd4 {[%clk 0:02:19.3]}
22... e6 {[%clk 0:01:06]} 23. Rdd1 {[%clk 0:02:16.9]} 23... Kf7 {[%clk
0:01:04.5]} 24. Nc2 {[%clk 0:02:16.3]} 24... b5 {[%clk 0:00:57.4]} 25. Nd4
{[%clk 0:02:15.1]} 25... Rc4 {[%clk 0:00:56.9]} 26. Ra1 {[%clk 0:02:05.5]} 26...
Rdc8 {[%clk 0:00:49.9]} 27. a3 {[%clk 0:02:04.7]} 27... Bf8 {[%clk 0:00:27.7]}
28. f3 {[%clk 0:02:03.9]} 28... Nd6 {[%clk 0:00:25.3]} 29. Kf2 {[%clk
0:02:00.7]} 29... R4c5 {[%clk 0:00:21.7]} 30. Nb3 {[%clk 0:01:57.7]} 30... R5c6
{[%clk 0:00:22.6]} 31. Rab1 {[%clk 0:01:53.9]} 31... Nc4 {[%clk 0:00:23.6]} 32.
Bf4 {[%clk 0:01:47.4]} 32... Be7 {[%clk 0:00:23.2]} 33. Ke2 {[%clk 0:01:46.9]}
33... Bd8 {[%clk 0:00:24.2]} 34. Nd2 {[%clk 0:01:46.1]} 34... Nb6 {[%clk
0:00:22.4]} 35. e4 {[%clk 0:01:44.8]} 35... dxe4 {[%clk 0:00:22.5]} 36. Nxe4
{[%clk 0:01:45.5]} 36... e5 {[%clk 0:00:20.8]} 37. Be3 {[%clk 0:01:43.5]} 37...
Be7 {[%clk 0:00:21.1]} 38. Bxb6 {[%clk 0:01:43.3]} 38... Rxb6 {[%clk 0:00:22.1]}
39. Rd7 {[%clk 0:01:43.8]} 39... Ke6 {[%clk 0:00:21.2]} 40. Rbd1 {[%clk
0:01:43.9]} 40... f5 {[%clk 0:00:22.4]} 41. Nf2 {[%clk 0:01:41.8]} 41... a5
{[%clk 0:00:22.7]} 42. Ra7 {[%clk 0:01:41.7]} 42... b4 {[%clk 0:00:22.6]} 43.
Rxa5 {[%clk 0:01:35.5]} 43... bxc3 {[%clk 0:00:23.5]} 44. bxc3 {[%clk
0:01:36.8]} 44... Rxc3 {[%clk 0:00:22.2]} 45. Nd3 {[%clk 0:01:27.2]} 45... Rbb3
{[%clk 0:00:19.1]} 46. Ra6+ {[%clk 0:01:21.5]} 46... Bd6 {[%clk 0:00:18.7]} 47.
Nc5+ {[%clk 0:01:14.1]} 47... Rxc5 {[%clk 0:00:18.7]} 48. Raxd6+ {[%clk
0:01:13.1]} 48... Kf7 {[%clk 0:00:19.6]} 49. Rd7+ {[%clk 0:01:14.4]} 49... Kf6
{[%clk 0:00:21]} 50. h4 {[%clk 0:01:12.8]} 50... Rc2+ {[%clk 0:00:18.2]} 51. Kf1
{[%clk 0:01:11.6]} 51... Rc6 {[%clk 0:00:16.2]} 52. R1d6+ {[%clk 0:01:09.3]}
52... Rxd6 {[%clk 0:00:17]} 53. Rxd6+ {[%clk 0:01:11.2]} 53... Kg7 {[%clk
0:00:17.2]} 54. Ra6 {[%clk 0:01:12.5]} 54... Kh6 {[%clk 0:00:18.5]} 55. Ra7
{[%clk 0:01:12.4]} 55... Rb2 {[%clk 0:00:18.7]} 56. a4 {[%clk 0:01:11.6]} 56...
Ra2 {[%clk 0:00:19.5]} 57. g3 {[%clk 0:01:12]} 57... g5 {[%clk 0:00:18.9]} 58.
hxg5+ {[%clk 0:01:11.2]} 58... Kxg5 {[%clk 0:00:20.8]} 59. Rxh7 {[%clk
0:01:09.1]} 59... Rxa4 {[%clk 0:00:20.6]} 60. Re7 {[%clk 0:01:10]} 60... Kf6
{[%clk 0:00:20.9]} 61. Rb7 {[%clk 0:01:11]} 61... Ra2 {[%clk 0:00:22]} 62. Rb6+
{[%clk 0:01:10.5]} 62... Kg5 {[%clk 0:00:23.3]} 63. Re6 {[%clk 0:01:10]} 63...
Ra1+ {[%clk 0:00:13.5]} 64. Kf2 {[%clk 0:01:09.7]} 64... Ra2+ {[%clk 0:00:15.1]}
65. Ke1 {[%clk 0:01:10.6]} 65... Ra3 {[%clk 0:00:12.5]} 66. Ke2 {[%clk
0:01:10.8]} 66... Ra2+ {[%clk 0:00:13.3]} 67. Kf1 {[%clk 0:01:10.5]} 67... Ra5
{[%clk 0:00:12]} 68. Kg2 {[%clk 0:01:06]} 68... f4 {[%clk 0:00:12]} 69. Re8
{[%clk 0:01:00.5]} 69... Ra2+ {[%clk 0:00:08.8]} 70. Kh3 {[%clk 0:01:01.6]}
70... fxg3 {[%clk 0:00:10.1]} 71. Kxg3 {[%clk 0:01:01.5]} 71... Ra5 {[%clk
0:00:08]} 72. Re6 {[%clk 0:01:01.4]} 72... Kf5 {[%clk 0:00:09.3]} 73. Re8 {[%clk
0:01:02.2]} 73... Kg5 {[%clk 0:00:10.1]} 74. Rxe5+ {[%clk 0:01:01.1]} 74... Rxe5
{[%clk 0:00:10.2]} 75. f4+ {[%clk 0:01:02.5]} 75... Kf5 {[%clk 0:00:12.1]} 76.
fxe5 {[%clk 0:01:04.4]} 76... Kxe5 {[%clk 0:00:14]} 1/2-1/2

[Event "*** Titled Tuesday Blitz"]
[Site "Chess.com"]
[Date "2018.05.01"]
[Round "4"]
[White "alturas_pacificas"]
[Black "savinspm"]
[Result "1-0"]
[WhiteElo "2154"]
[BlackElo "1982"]
[TimeControl "180+2"]
[EndTime "13:54:30 PDT"]
[Termination "alturas_pacificas won by checkmate"]

1. d4 {[%clk 0:02:39.1]} 1... Nf6 {[%clk 0:02:59.1]} 2. Bf4 {[%clk 0:02:39.4]}
2... e6 {[%clk 0:02:59.4]} 3. e3 {[%clk 0:02:38.7]} 3... Be7 {[%clk 0:03:00.5]}
4. Nd2 {[%clk 0:02:37.2]} 4... c5 {[%clk 0:03:00.7]} 5. c3 {[%clk 0:02:37.7]}
5... b6 {[%clk 0:03:01.8]} 6. h3 {[%clk 0:02:33.8]} 6... Bb7 {[%clk 0:03:01.2]}
7. Ngf3 {[%clk 0:02:34.9]} 7... d6 {[%clk 0:02:56.8]} 8. Bh2 {[%clk 0:02:33.7]}
8... O-O {[%clk 0:02:51.3]} 9. Bd3 {[%clk 0:02:34.8]} 9... cxd4 {[%clk
0:02:49.7]} 10. exd4 {[%clk 0:02:34.2]} 10... Nbd7 {[%clk 0:02:46.1]} 11. O-O
{[%clk 0:02:32.6]} 11... Qc7 {[%clk 0:02:46.3]} 12. Re1 {[%clk 0:02:32.5]} 12...
Rfe8 {[%clk 0:02:36.6]} 13. Qe2 {[%clk 0:02:33.1]} 13... Bf8 {[%clk 0:02:37.3]}
14. Ba6 {[%clk 0:02:33.8]} 14... Bxa6 {[%clk 0:02:33]} 15. Qxa6 {[%clk 0:02:34]}
15... Rac8 {[%clk 0:02:33.1]} 16. a4 {[%clk 0:02:32.3]} 16... Nb8 {[%clk
0:02:27.1]} 17. Qb5 {[%clk 0:02:28.4]} 17... Qc6 {[%clk 0:02:27.8]} 18. Qd3
{[%clk 0:02:17]} 18... a5 {[%clk 0:02:26]} 19. Bg3 {[%clk 0:02:07.6]} 19... Nbd7
{[%clk 0:02:16.2]} 20. Ng5 {[%clk 0:01:58.4]} 20... h6 {[%clk 0:02:06]} 21. Nge4
{[%clk 0:01:59.6]} 21... d5 {[%clk 0:01:59.5]} 22. Nxf6+ {[%clk 0:01:58.2]}
22... Nxf6 {[%clk 0:02:00.4]} 23. Be5 {[%clk 0:01:51.5]} 23... Nd7 {[%clk
0:01:52.7]} 24. Bg3 {[%clk 0:01:52]} 24... Bd6 {[%clk 0:01:52.4]} 25. Bxd6
{[%clk 0:01:47]} 25... Qxd6 {[%clk 0:01:52.9]} 26. Nf3 {[%clk 0:01:48.5]} 26...
Rc7 {[%clk 0:01:47.8]} 27. Ne5 {[%clk 0:01:42.5]} 27... Nxe5 {[%clk 0:01:46.4]}
28. dxe5 {[%clk 0:01:44.4]} 28... Qc5 {[%clk 0:01:44.9]} 29. Qe3 {[%clk
0:01:40.5]} 29... Qxe3 {[%clk 0:01:44.5]} 30. Rxe3 {[%clk 0:01:41.3]} 30... Rec8
{[%clk 0:01:45.2]} 31. Kf1 {[%clk 0:01:34.2]} 31... Rc4 {[%clk 0:01:46]} 32. Ke2
{[%clk 0:01:32.7]} 32... d4 {[%clk 0:01:44.2]} 33. cxd4 {[%clk 0:01:32.9]} 33...
Rxd4 {[%clk 0:01:43.4]} 34. Kf3 {[%clk 0:00:47.6]} 34... Rd2 {[%clk 0:01:41.6]}
35. b3 {[%clk 0:00:44.6]} 35... Rcc2 {[%clk 0:01:38.7]} 36. Rf1 {[%clk
0:00:45.8]} 36... Rd5 {[%clk 0:01:34.3]} 37. g4 {[%clk 0:00:43.9]} 37... Kf8
{[%clk 0:01:34.3]} 38. Kg3 {[%clk 0:00:42.9]} 38... Ke7 {[%clk 0:01:34.7]} 39.
h4 {[%clk 0:00:41.6]} 39... Rd4 {[%clk 0:01:29]} 40. h5 {[%clk 0:00:40.4]} 40...
Kd7 {[%clk 0:01:23.4]} 41. Rfe1 {[%clk 0:00:34.8]} 41... Rdd2 {[%clk 0:01:21.3]}
42. Rf1 {[%clk 0:00:32.7]} 42... Kc6 {[%clk 0:01:20.6]} 43. Rf3 {[%clk
0:00:33.8]} 43... Rd7 {[%clk 0:01:21.4]} 44. Re1 {[%clk 0:00:32.2]} 44... Kc5
{[%clk 0:01:21.7]} 45. Re4 {[%clk 0:00:33.4]} 45... Kc6 {[%clk 0:01:16.5]} 46.
Ref4 {[%clk 0:00:33.8]} 46... Rb2 {[%clk 0:01:01.4]} 47. Rxf7 {[%clk 0:00:33.9]}
47... Rxf7 {[%clk 0:01:01.9]} 48. Rxf7 {[%clk 0:00:34.1]} 48... Rxb3+ {[%clk
0:01:03.3]} 49. Kh4 {[%clk 0:00:34]} 49... b5 {[%clk 0:01:01.3]} 50. axb5+
{[%clk 0:00:33.1]} 50... Rxb5 {[%clk 0:01:02.4]} 51. Rxg7 {[%clk 0:00:28.1]}
51... Rxe5 {[%clk 0:01:03.1]} 52. f4 {[%clk 0:00:28.6]} 52... Re4 {[%clk
0:01:03.7]} 53. Kg3 {[%clk 0:00:29.1]} 53... a4 {[%clk 0:01:04.5]} 54. g5 {[%clk
0:00:26.8]} 54... a3 {[%clk 0:01:04.2]} 55. Ra7 {[%clk 0:00:21.3]} 55... Re3+
{[%clk 0:01:04.5]} 56. Kg4 {[%clk 0:00:22]} 56... Kb6 {[%clk 0:01:04.4]} 57. Ra8
{[%clk 0:00:22]} 57... Kb7 {[%clk 0:01:05.5]} 58. Ra4 {[%clk 0:00:23.3]} 58...
hxg5 {[%clk 0:01:06.4]} 59. fxg5 {[%clk 0:00:24.3]} 59... Kc7 {[%clk 0:01:06.6]}
60. h6 {[%clk 0:00:25.3]} 60... Kd7 {[%clk 0:01:07.8]} 61. h7 {[%clk 0:00:26]}
61... a2 {[%clk 0:01:00.9]} 62. Rxa2 {[%clk 0:00:20]} 62... Re4+ {[%clk
0:01:01.1]} 63. Kh5 {[%clk 0:00:19.9]} 63... Re1 {[%clk 0:01:01.4]} 64. Rh2
{[%clk 0:00:19.8]} 64... Rf1 {[%clk 0:00:50.2]} 65. h8=Q {[%clk 0:00:19]} 65...
Ke7 {[%clk 0:00:51.3]} 66. Qg7+ {[%clk 0:00:19.3]} 66... Rf7 {[%clk 0:00:52]}
67. Qxf7+ {[%clk 0:00:19.7]} 67... Kxf7 {[%clk 0:00:53.2]} 68. g6+ {[%clk
0:00:21.5]} 68... Kg7 {[%clk 0:00:54.3]} 69. Rf2 {[%clk 0:00:22.1]} 69... e5
{[%clk 0:00:55.5]} 70. Rf7+ {[%clk 0:00:23.4]} 70... Kg8 {[%clk 0:00:56.5]} 71.
Kh6 {[%clk 0:00:24.8]} 71... e4 {[%clk 0:00:58]} 72. Ra7 {[%clk 0:00:25.1]}
72... Kf8 {[%clk 0:00:59.2]} 73. g7+ {[%clk 0:00:25.7]} 73... Kg8 {[%clk
0:01:00.5]} 74. Kg6 {[%clk 0:00:26.3]} 74... e3 {[%clk 0:01:01.1]} 75. Rb7
{[%clk 0:00:26.5]} 75... e2 {[%clk 0:01:01.4]} 76. Ra7 {[%clk 0:00:21]} 76...
e1=R {[%clk 0:01:00.7]} 77. Ra8+ {[%clk 0:00:21.4]} 77... Re8 {[%clk 0:01:01.4]}
78. Rxe8# {[%clk 0:00:22.1]} 1-0

[Event "*** Titled Tuesday Blitz"]
[Site "Chess.com"]
[Date "2018.05.01"]
[Round "4"]
[White "Manukyan_Artak"]
[Black "sandromareco"]
[Result "1-0"]
[WhiteElo "2381"]
[BlackElo "2597"]
[TimeControl "180+2"]
[EndTime "13:55:03 PDT"]
[Termination "Manukyan_Artak won by resignation"]

1. e4 {[%clk 0:03:01.9]} 1... e5 {[%clk 0:03:00.1]} 2. Nf3 {[%clk 0:03:02.7]}
2... Nc6 {[%clk 0:03:01.2]} 3. d4 {[%clk 0:03:03.3]} 3... exd4 {[%clk
0:03:00.6]} 4. Nxd4 {[%clk 0:03:05.1]} 4... Bc5 {[%clk 0:03:02.2]} 5. Nxc6
{[%clk 0:03:05.9]} 5... Qf6 {[%clk 0:03:02.4]} 6. Qf3 {[%clk 0:03:06.7]} 6...
dxc6 {[%clk 0:03:03.2]} 7. Bc4 {[%clk 0:03:06.4]} 7... h5 {[%clk 0:02:53.2]} 8.
Nc3 {[%clk 0:02:51.9]} 8... Bg4 {[%clk 0:02:51.4]} 9. Qxf6 {[%clk 0:02:51.9]}
9... Nxf6 {[%clk 0:02:52.9]} 10. f3 {[%clk 0:02:52.3]} 10... Be6 {[%clk
0:02:49.8]} 11. Bxe6 {[%clk 0:02:49.5]} 11... fxe6 {[%clk 0:02:51.7]} 12. Ke2
{[%clk 0:02:48.3]} 12... O-O-O {[%clk 0:02:49]} 13. Be3 {[%clk 0:02:25.5]} 13...
Bb4 {[%clk 0:02:48.9]} 14. Nd1 {[%clk 0:02:18.7]} 14... e5 {[%clk 0:02:46.9]}
15. Nf2 {[%clk 0:02:14.3]} 15... Nd7 {[%clk 0:02:46.9]} 16. Rad1 {[%clk
0:02:08.3]} 16... b6 {[%clk 0:02:44.1]} 17. Nd3 {[%clk 0:02:03.8]} 17... Bd6
{[%clk 0:02:43.8]} 18. c3 {[%clk 0:01:49.3]} 18... a5 {[%clk 0:02:42.3]} 19. b3
{[%clk 0:01:47]} 19... Kb7 {[%clk 0:02:38.9]} 20. Nb2 {[%clk 0:01:47.9]} 20...
b5 {[%clk 0:02:39.8]} 21. Rd3 {[%clk 0:01:40.8]} 21... Ra8 {[%clk 0:02:40]} 22.
Rhd1 {[%clk 0:01:32.1]} 22... Rhf8 {[%clk 0:02:40]} 23. a4 {[%clk 0:01:09.7]}
23... Nf6 {[%clk 0:02:36.2]} 24. c4 {[%clk 0:01:06]} 24... Ba3 {[%clk
0:02:27.4]} 25. Bc1 {[%clk 0:01:02.9]} 25... Rfe8 {[%clk 0:02:13.3]} 26. cxb5
{[%clk 0:01:02.5]} 26... cxb5 {[%clk 0:02:13.2]} 27. axb5 {[%clk 0:01:02.3]}
27... Bxb2 {[%clk 0:02:14.3]} 28. Bxb2 {[%clk 0:01:03]} 28... a4 {[%clk
0:02:12.7]} 29. bxa4 {[%clk 0:01:01.9]} 29... Rxa4 {[%clk 0:02:13.7]} 30. Rb3
{[%clk 0:00:54.8]} 30... Rea8 {[%clk 0:02:11.6]} 31. Bxe5 {[%clk 0:00:51.9]}
31... Ra2+ {[%clk 0:02:04.5]} 32. Rd2 {[%clk 0:00:52.3]} 32... Ne8 {[%clk
0:02:02.7]} 33. Rbb2 {[%clk 0:00:49.1]} 33... Ra1 {[%clk 0:02:02.5]} 34. Kf2
{[%clk 0:00:46.2]} 34... Rh1 {[%clk 0:02:02.6]} 35. Rbc2 {[%clk 0:00:43.5]}
35... h4 {[%clk 0:02:02.7]} 36. Ke3 {[%clk 0:00:42.4]} 36... g5 {[%clk
0:02:00.5]} 37. Rd3 {[%clk 0:00:40.5]} 37... Re1+ {[%clk 0:01:55]} 38. Re2
{[%clk 0:00:41]} 38... Rb1 {[%clk 0:01:55.9]} 39. Rb2 {[%clk 0:00:37.8]} 39...
Re1+ {[%clk 0:01:56.3]} 40. Re2 {[%clk 0:00:37]} 40... Rb1 {[%clk 0:01:57]} 41.
Rb2 {[%clk 0:00:38]} 41... Rf1 {[%clk 0:01:51.6]} 42. Rf2 {[%clk 0:00:35.4]}
42... Rg1 {[%clk 0:01:51.4]} 43. Rc2 {[%clk 0:00:33.1]} 43... Kb6 {[%clk
0:01:49.8]} 44. Rd7 {[%clk 0:00:28.9]} 44... Ra3+ {[%clk 0:01:49.5]} 45. Rd3
{[%clk 0:00:29.8]} 45... Ra8 {[%clk 0:01:43.3]} 46. Bd4+ {[%clk 0:00:24.6]}
46... Kb7 {[%clk 0:01:43.4]} 47. Be5 {[%clk 0:00:25.7]} 47... Rh1 {[%clk
0:01:41.8]} 48. Rd7 {[%clk 0:00:25.6]} 48... Ra3+ {[%clk 0:01:42]} 49. Rd3
{[%clk 0:00:26.6]} 49... Ra5 {[%clk 0:01:42.9]} 50. Rb3 {[%clk 0:00:25.1]} 50...
Re1+ {[%clk 0:01:40.7]} 51. Re2 {[%clk 0:00:23.7]} 51... Rc1 {[%clk 0:01:41.3]}
52. Rd2 {[%clk 0:00:21.8]} 52... Rc5 {[%clk 0:01:40.9]} 53. Bd4 {[%clk
0:00:20.8]} 53... Rc4 {[%clk 0:01:38.1]} 54. Rc3 {[%clk 0:00:20.3]} 54... Rxc3+
{[%clk 0:01:37.3]} 55. Bxc3 {[%clk 0:00:20.2]} 55... Ra3 {[%clk 0:01:38.9]} 56.
Kd4 {[%clk 0:00:19.9]} 56... Nd6 {[%clk 0:01:38]} 57. Rb2 {[%clk 0:00:20.5]}
57... Ra4+ {[%clk 0:01:38.1]} 58. Kd5 {[%clk 0:00:20.5]} 58... Nc4 {[%clk
0:01:37.7]} 59. Rb4 {[%clk 0:00:18.5]} 59... Ne3+ {[%clk 0:01:38.5]} 60. Ke6
{[%clk 0:00:17.1]} 60... Ra3 {[%clk 0:01:35.1]} 61. Bf6 {[%clk 0:00:17.3]} 61...
Nxg2 {[%clk 0:01:35.7]} 62. Bxg5 {[%clk 0:00:16.2]} 62... Rxf3 {[%clk
0:01:37.2]} 63. e5 {[%clk 0:00:14.7]} 63... h3 {[%clk 0:01:38.4]} 64. Kd5 {[%clk
0:00:13.1]} 64... Rd3+ {[%clk 0:01:38.6]} 65. Rd4 {[%clk 0:00:13.3]} 65... Rb3
{[%clk 0:01:37]} 66. Kc4 {[%clk 0:00:13.5]} 66... Rb2 {[%clk 0:01:29.4]} 67. Re4
{[%clk 0:00:11.7]} 67... Rc2+ {[%clk 0:01:23.9]} 68. Kd3 {[%clk 0:00:12.5]}
68... Rf2 {[%clk 0:01:24.3]} 69. e6 {[%clk 0:00:13.1]} 69... Rf8 {[%clk
0:01:25.3]} 70. e7 {[%clk 0:00:13.9]} 70... Re8 {[%clk 0:01:26.4]} 71. Ke2
{[%clk 0:00:14.9]} 71... Kb6 {[%clk 0:01:22.9]} 72. Re5 {[%clk 0:00:15.8]} 72...
Kb7 {[%clk 0:01:23.3]} 73. Kf2 {[%clk 0:00:16.6]} 73... c6 {[%clk 0:01:22.2]}
74. bxc6+ {[%clk 0:00:17.1]} 74... Kxc6 {[%clk 0:01:24.1]} 75. Kg3 {[%clk
0:00:18.5]} 75... Kd6 {[%clk 0:01:25.4]} 76. Re2 {[%clk 0:00:19.6]} 76... Kc6
{[%clk 0:01:24.6]} 77. Kxh3 {[%clk 0:00:20.8]} 1-0

[Event "*** Titled Tuesday Blitz"]
[Site "Chess.com"]
[Date "2018.05.01"]
[Round "4"]
[White "FastChance"]
[Black "LastHeroJr"]
[Result "1-0"]
[WhiteElo "2653"]
[BlackElo "2441"]
[TimeControl "180+2"]
[EndTime "13:55:06 PDT"]
[Termination "FastChance won by resignation"]

1. e4 {[%clk 0:03:01.9]} 1... e5 {[%clk 0:02:59.6]} 2. Nf3 {[%clk 0:03:01.7]}
2... Nc6 {[%clk 0:03:00.8]} 3. Bb5 {[%clk 0:03:02.1]} 3... a6 {[%clk 0:03:01.4]}
4. Ba4 {[%clk 0:03:02.4]} 4... Nf6 {[%clk 0:03:02.6]} 5. d3 {[%clk 0:03:03.4]}
5... Bc5 {[%clk 0:03:01.3]} 6. O-O {[%clk 0:03:02.6]} 6... O-O {[%clk
0:03:02.2]} 7. Bxc6 {[%clk 0:03:02.6]} 7... bxc6 {[%clk 0:03:01.5]} 8. Nxe5
{[%clk 0:03:02.6]} 8... d5 {[%clk 0:03:02.4]} 9. Nxc6 {[%clk 0:02:47.2]} 9...
Qe8 {[%clk 0:02:40.6]} 10. exd5 {[%clk 0:02:43]} 10... Nxd5 {[%clk 0:02:39.7]}
11. d4 {[%clk 0:02:42.6]} 11... Bd6 {[%clk 0:02:31.8]} 12. Ne5 {[%clk
0:02:42.5]} 12... c5 {[%clk 0:02:32.7]} 13. Nc4 {[%clk 0:02:32.2]} 13... Bc7
{[%clk 0:02:24.7]} 14. dxc5 {[%clk 0:02:29.7]} 14... Qc6 {[%clk 0:02:19.9]} 15.
Nc3 {[%clk 0:02:12.2]} 15... Nxc3 {[%clk 0:02:20.1]} 16. bxc3 {[%clk 0:02:13.3]}
16... Qxc5 {[%clk 0:02:21.5]} 17. Ne3 {[%clk 0:02:08.1]} 17... Qxc3 {[%clk
0:02:09.1]} 18. Rb1 {[%clk 0:02:09.3]} 18... Qe5 {[%clk 0:02:02.4]} 19. g3
{[%clk 0:01:56.4]} 19... Bh3 {[%clk 0:02:01.3]} 20. Re1 {[%clk 0:01:55.2]} 20...
Qe4 {[%clk 0:01:15.3]} 21. Qd5 {[%clk 0:01:53.8]} 21... Qa4 {[%clk 0:01:04.1]}
22. Bb2 {[%clk 0:01:40.3]} 22... Rad8 {[%clk 0:01:00.4]} 23. Qf3 {[%clk
0:01:28.8]} 23... Bc8 {[%clk 0:00:44.4]} 24. Nd5 {[%clk 0:01:24.9]} 24... Bd6
{[%clk 0:00:40.1]} 25. Nf6+ {[%clk 0:01:10.4]} 25... Kh8 {[%clk 0:00:28.9]} 26.
Qc3 {[%clk 0:01:01.4]} 26... Bb4 {[%clk 0:00:25]} 27. Qe5 {[%clk 0:00:56.6]}
27... Bxe1 {[%clk 0:00:20.8]} 28. Rxe1 {[%clk 0:00:36.4]} 28... Qb5 {[%clk
0:00:21.6]} 29. Qc3 {[%clk 0:00:32.6]} 29... Qf5 {[%clk 0:00:22.1]} 30. Nd5
{[%clk 0:00:27.3]} 30... f6 {[%clk 0:00:22.7]} 31. Ne7 {[%clk 0:00:27.3]} 31...
Qd7 {[%clk 0:00:23.2]} 32. Nxc8 {[%clk 0:00:25.7]} 32... Rxc8 {[%clk 0:00:25.1]}
33. Qa3 {[%clk 0:00:24.9]} 33... Qc6 {[%clk 0:00:21.3]} 34. Re7 {[%clk
0:00:23.3]} 34... Rfd8 {[%clk 0:00:20.4]} 35. Re1 {[%clk 0:00:17.1]} 35... Qxc2
{[%clk 0:00:20.6]} 36. Ba1 {[%clk 0:00:13.9]} 36... Rd2 {[%clk 0:00:20.6]} 37.
Qe3 {[%clk 0:00:14.5]} 37... Rdd8 {[%clk 0:00:19.4]} 38. h4 {[%clk 0:00:15.1]}
38... Qf5 {[%clk 0:00:19.5]} 39. Kg2 {[%clk 0:00:14.9]} 39... Qd5+ {[%clk
0:00:20.1]} 40. Kh2 {[%clk 0:00:15.9]} 40... h6 {[%clk 0:00:20.9]} 41. Qa7
{[%clk 0:00:16.3]} 41... Rd7 {[%clk 0:00:12.5]} 42. Qxa6 {[%clk 0:00:16.5]}
42... Rc2 {[%clk 0:00:12.4]} 43. Re8+ {[%clk 0:00:16.8]} 43... Kh7 {[%clk
0:00:13.1]} 44. Qb6 {[%clk 0:00:16.3]} 44... Qf3 {[%clk 0:00:13]} 45. Bd4 {[%clk
0:00:14.9]} 45... Rb7 {[%clk 0:00:12.4]} 46. Qe6 {[%clk 0:00:14.1]} 46... Rb1
{[%clk 0:00:10.1]} 47. Qe4+ {[%clk 0:00:12.8]} 47... Qxe4 {[%clk 0:00:10.5]} 48.
Rxe4 {[%clk 0:00:14.7]} 48... Rc4 {[%clk 0:00:11.3]} 49. Rf4 {[%clk 0:00:13.6]}
49... Rbb4 {[%clk 0:00:10.3]} 50. Be3 {[%clk 0:00:14.2]} 50... Rxf4 {[%clk
0:00:10.8]} 51. Bxf4 {[%clk 0:00:15.8]} 51... Ra4 {[%clk 0:00:12.7]} 52. Be3
{[%clk 0:00:16.9]} 52... Rxa2 {[%clk 0:00:13.7]} 53. Kg2 {[%clk 0:00:18.5]}
53... Kg6 {[%clk 0:00:14.8]} 54. g4 {[%clk 0:00:17.8]} 54... h5 {[%clk
0:00:15.1]} 55. Kf3 {[%clk 0:00:16.2]} 55... hxg4+ {[%clk 0:00:15.7]} 56. Kxg4
{[%clk 0:00:18.1]} 56... Ra4+ {[%clk 0:00:17]} 57. Kg3 {[%clk 0:00:17.3]} 57...
Kh5 {[%clk 0:00:17]} 58. Bf4 {[%clk 0:00:18.7]} 58... Ra3+ {[%clk 0:00:11.3]}
59. f3 {[%clk 0:00:19.7]} 59... Rb3 {[%clk 0:00:10.7]} 60. Bd6 {[%clk
0:00:19.8]} 60... Rd3 {[%clk 0:00:10.3]} 61. Bc7 {[%clk 0:00:20.4]} 61... Kg6
{[%clk 0:00:10.8]} 62. Kg4 {[%clk 0:00:21.1]} 62... Rd4+ {[%clk 0:00:11.5]} 63.
Kg3 {[%clk 0:00:22.1]} 63... Kf5 {[%clk 0:00:11.9]} 64. Bb8 {[%clk 0:00:23.1]}
64... Rc4 {[%clk 0:00:12.1]} 65. Bd6 {[%clk 0:00:23.8]} 65... Ke6 {[%clk
0:00:12.5]} 66. Bf4 {[%clk 0:00:24]} 66... Ra4 {[%clk 0:00:12.1]} 67. Bc7 {[%clk
0:00:24.8]} 67... g6 {[%clk 0:00:12.7]} 68. Bf4 {[%clk 0:00:25.4]} 68... Kd5
{[%clk 0:00:13.5]} 69. Bc7 {[%clk 0:00:26.3]} 69... Kd4 {[%clk 0:00:14.4]} 70.
Bd8 {[%clk 0:00:26.1]} 70... Ke5 {[%clk 0:00:12.2]} 71. Bc7+ {[%clk 0:00:26.9]}
71... Kf5 {[%clk 0:00:13.4]} 72. Bb8 {[%clk 0:00:27.8]} 72... Ra1 {[%clk
0:00:13.8]} 73. Bc7 {[%clk 0:00:27.8]} 73... Rg1+ {[%clk 0:00:13.5]} 74. Kf2
{[%clk 0:00:29.1]} 74... Rc1 {[%clk 0:00:15.4]} 75. Bd6 {[%clk 0:00:28.7]} 75...
Ke6 {[%clk 0:00:15.9]} 76. Bf4 {[%clk 0:00:28.6]} 76... Kd5 {[%clk 0:00:17.1]}
77. Bxc1 {[%clk 0:00:29.5]} 77... Kd4 {[%clk 0:00:16.5]} 78. Kg3 {[%clk
0:00:30.4]} 78... Kd5 {[%clk 0:00:15.7]} 79. Bb2 {[%clk 0:00:31.7]} 79... Ke6
{[%clk 0:00:17.6]} 80. Kf4 {[%clk 0:00:33.1]} 80... Kf7 {[%clk 0:00:18.8]} 81.
Kg4 {[%clk 0:00:33.9]} 81... Ke6 {[%clk 0:00:19.5]} 82. f4 {[%clk 0:00:35.1]}
82... Kf7 {[%clk 0:00:20.7]} 83. f5 {[%clk 0:00:35.2]} 1-0